fUSD/lending_fUSD_20250814
["ID","MTS","AMOUNT","RATE_DAILY","PERIOD"]
[379176711,1755178247911,-400.0,0.00027397,2]
[379176712,1755178247922,-2848.66,0.00027397,2]
[379176713,1755178247933,-400.0,0.00027397,2]
[379176714,1755178247944,-400.0,0.00027397,2]
[379176715,1755178247955,-400.0,0.00027397,2]
[379176716,1755178247965,-400.0,0.00027397,2]
[379176717,1755178247977,-400.0,0.00027397,2]
[379176718,1755178247995,-400.0,0.00027397,2]
[379176719,1755178248006,-4471.08,0.00027397,2]
[379176720,1755178248018,-1765.91,0.00027397,2]
[379176721,1755178248029,-4137.05,0.00027397,2]
[379176722,1755178248040,-3624.02,0.00027397,2]
[379176723,1755178248050,-2962.3,0.00027397,2]
[379176724,1755178248062,-863.62,0.00027397,2]
[379176725,1755178248074,-546.51,0.00027397,2]
[379176726,1755178248084,-400.0,0.00027397,2]
[379176727,1755178248095,-400.0,0.00027397,2]
[379176728,1755178248105,-400.0,0.00027397,2]
[379176729,1755178248115,-4620.46,0.00027397,2]
[379176730,1755178248126,-17448.02,0.00027397,2]
[379176731,1755178248137,-8698.69,0.00027397,2]
[379176732,1755178248148,-400.0,0.00027397,2]
[379176733,1755178248158,-5603.31,0.00027397,2]
[379176734,1755178248168,-400.0,0.00027397,2]
[379176735,1755178248178,-3056.88,0.00027397,2]
[379176736,1755178248188,-7249.61,0.00027397,2]
[379176737,1755178248199,-4155.84,0.00027397,2]
[379176738,1755178248211,-10080.61,0.00027397,2]
[379176739,1755178248221,-1164.62,0.00027397,2]
[379176740,1755178248235,-3889.84,0.00027397,2]
[379176741,1755178248246,-6735.37,0.00027397,2]
[379176742,1755178248258,-400.0,0.00027397,2]
[379176743,1755178248270,-2470.93,0.00027397,2]
[379176744,1755178248281,-5653.48,0.00027397,2]
[379176745,1755178248291,-3694.2,0.00027397,2]
[379176746,1755178248301,-12828.38,0.00027397,2]
[379176747,1755178248312,-154.02091792,0.00027397,2]
[379176748,1755178248322,-400.0,0.00027397,2]
[379176749,1755178248331,-2876.51,0.00027397,2]
[379176750,1755178248341,-400.0,0.00027397,2]
[379176751,1755178248352,-465.68879832,0.00027397,2]
[379176752,1755178248362,-901.26,0.00027397,2]
[379176753,1755178248372,-2054.73,0.00027397,2]
[379176754,1755178248382,-8613.44,0.00027397,2]
[379176755,1755178248392,-9150.1,0.00027397,2]
[379176756,1755178248401,-500.0,0.00027397,2]
[379176757,1755178248411,-673.99,0.00027397,2]
[379176758,1755178248421,-612.0,0.00027397,2]
[379176759,1755178248431,-5566.06,0.00027397,2]
[379176760,1755178248440,-6177.7,0.00027397,2]
[379176761,1755178248450,-5070.98,0.00027397,2]
[379176762,1755178248459,-4468.09,0.00027397,2]
[379176763,1755178248469,-2767.41,0.00027397,2]
[379176764,1755178248479,-1438.76,0.00027397,2]
[379176765,1755178248494,-5454.14,0.00027397,2]
[379176766,1755178248504,-401.62567205,0.00027397,2]
[379176767,1755178248513,-6253.51,0.00027397,2]
[379176768,1755178248523,-400.0,0.00027397,2]
[379176769,1755178248533,-8378.96,0.00027397,2]
[379176770,1755178248543,-500.0,0.00027397,2]
[379176771,1755178248554,-302.04332044,0.00027397,2]
[379176772,1755178248564,-1830.64,0.00027397,2]
[379176773,1755178248578,-1177.84,0.00027397,2]
[379176774,1755178248596,-168.883518,0.00027397,7]
[379176775,1755178248607,-400.0,0.00027397,2]
[379176776,1755178248617,-168.883518,0.00027397,7]
[379176777,1755178248628,-150.0,0.00027397,2]
[379176778,1755178248645,-400.0,0.00027397,2]
[379176779,1755178248662,-867.45,0.00027397,2]
[379176780,1755178248673,-400.0,0.00027397,2]
[379176781,1755178248683,-6893.83,0.00027397,2]
[379176782,1755178248693,-400.0,0.00027397,2]
[379176783,1755178248706,-3154.7,0.00027397,2]
[379176784,1755178248716,-1811.26,0.00027397,2]
[379176785,1755178248726,-168.883518,0.00027397,7]
[379176786,1755178248741,-3403.99,0.00027397,2]
[379176787,1755178248751,-168.883518,0.00027397,7]
[379176788,1755178248762,-1256.98,0.00027397,2]
[379176789,1755178248772,-3949.26,0.00027397,2]
[379176790,1755178248781,-400.0,0.00027397,2]
[379176791,1755178248792,-9301.0,0.00027397,2]
[379176792,1755178248802,-500.0,0.00027397,2]
[379176793,1755178248812,-400.0,0.00027397,2]
[379176794,1755178248824,-433.57,0.00027397,2]
[379176795,1755178248833,-388.34556768,0.00027397,2]
[379176796,1755178248844,-503.43,0.00027397,2]
[379176797,1755178248854,-400.0,0.00027397,2]
[379176798,1755178248864,-400.0,0.00027397,2]
[379176799,1755178248875,-400.0,0.00027397,2]
[379176800,1755178248885,-753.13,0.00027397,2]
[379176801,1755178248898,-400.0,0.00027397,2]
[379176802,1755178248908,-400.0,0.00027397,2]
[379176803,1755178248917,-400.0,0.00027397,2]
[379176804,1755178248927,-400.0,0.00027397,2]
[379176805,1755178248936,-1000.0,0.00027397,7]
[379176806,1755178248945,-1000.0,0.00027397,7]
[379176807,1755178248955,-1000.0,0.00027397,7]
[379176808,1755178248964,-1000.0,0.00027397,7]
[379176809,1755178248975,-1000.0,0.00027397,7]
[379176810,1755178248992,-330.0,0.00027397,7]
[379176811,1755178249002,-261.12,0.00027397,80]
[379176812,1755178249012,-1000.0,0.00027397,7]
[379176813,1755178249022,-166.0,0.00027397,7]
[379176814,1755178249032,-300.0,0.00027397,2]
[379176815,1755178249042,-166.54331091,0.000274,2]
[379176816,1755178249052,-166.54331091,0.000274,2]
[379176817,1755178249065,-166.54331091,0.000274,2]
[379176818,1755178249076,-1823.55,0.000274,2]
[379176819,1755178249086,-458.13769775,0.000274,7]
[379176820,1755178249095,-1339.15309945,0.00027422,2]
[379176821,1755178249105,-5415.86833297,0.00027433,2]
[379176822,1755178249115,-889.06882919,0.00027447,2]
[379176823,1755178249125,-4800.0,0.000275,10]
[379176824,1755178249135,-2716.0,0.00027507,2]
[379176825,1755178249145,-3069.0,0.00027507,2]
[379176826,1755178249154,-758.59,0.00027511,2]
[379176827,1755178249165,-1093.89,0.00027512,2]
[379176828,1755178249175,-151.0,0.00027513,7]
[379176829,1755178249185,-151.0,0.00027513,7]
[379176830,1755178249196,-220.970031,0.00027513,7]
[379176831,1755178249207,-279.221199,0.00027513,7]
[379176832,1755178249218,-279.221199,0.00027513,7]
[379176833,1755178249375,-151.0,0.00027513,7]
[379176834,1755178249386,-151.0,0.00027513,7]
[379176835,1755178249396,-1093.89,0.00027521,2]
[379176836,1755178249406,-758.59,0.00027521,2]
[379176837,1755178249417,-396668.89397874,0.00027521,2]
[379176838,1755178249426,-400.0,0.00027522,2]
[379176839,1755178249437,-400.0,0.00027522,2]
[379176840,1755178249447,-1189.37,0.00027522,2]
[379176841,1755178249457,-400.0,0.00027522,2]
[379176842,1755178249467,-870.39,0.00027522,2]
[379176843,1755178249477,-2443.64,0.00027522,2]
[379176844,1755178249491,-498.33,0.00027522,2]
[379176845,1755178249501,-477.74,0.00027522,2]
[379176846,1755178249512,-400.0,0.00027522,2]
[379176847,1755178249522,-400.0,0.00027522,2]
[379176848,1755178249532,-1121.44,0.00027522,2]
[379176849,1755178249542,-400.0,0.00027522,2]
[379176850,1755178249553,-1260.91,0.00027522,2]
[379176851,1755178249563,-750.71,0.00027522,2]
[379176852,1755178249574,-400.0,0.00027522,2]
[379176853,1755178249584,-1903.41,0.00027522,2]
[379176854,1755178249594,-838.66,0.00027522,2]
[379176855,1755178249605,-554.53,0.00027522,2]
[379176856,1755178249616,-887.68,0.00027522,2]
[379176857,1755178249626,-408.53,0.00027522,2]
[379176858,1755178249637,-1952.8,0.00027522,2]
[379176859,1755178249647,-1017.21,0.00027522,2]
[379176860,1755178249658,-2764.46,0.00027522,2]
[379176861,1755178249668,-400.0,0.00027522,2]
[379176862,1755178249678,-618.14,0.00027522,2]
[379176863,1755178249689,-421.45,0.00027522,2]
[379176864,1755178249700,-486.77,0.00027522,2]
[379176865,1755178249711,-400.0,0.00027522,2]
[379176866,1755178249721,-616.67,0.00027522,2]
[379176867,1755178249731,-400.0,0.00027522,2]
[379176868,1755178249748,-400.0,0.00027522,2]
[379176869,1755178249758,-440.12,0.00027522,2]
[379176870,1755178249768,-400.0,0.00027522,2]
[379176871,1755178249778,-2834.21,0.00027522,2]
[379176872,1755178249787,-250.0,0.00027522,2]
[379176873,1755178249798,-400.0,0.00027522,2]
[379176874,1755178249808,-422.77,0.00027522,2]
[379176875,1755178249818,-400.0,0.00027522,2]
[379176876,1755178249828,-400.0,0.00027522,2]
[379176877,1755178249838,-400.0,0.00027522,2]
[379176878,1755178249850,-400.0,0.00027522,2]
[379176879,1755178249860,-400.0,0.00027522,2]
[379176880,1755178249871,-400.0,0.00027522,2]
[379176881,1755178249882,-400.0,0.00027522,2]
[379176882,1755178249893,-2393.63,0.00027522,2]
[379176883,1755178249904,-530.39117,0.00027522,2]
[379176884,1755178249914,-400.0,0.00027522,2]
[379176885,1755178249925,-400.0,0.00027522,2]
[379176886,1755178249936,-658.49,0.00027522,2]
[379176887,1755178249946,-825.38,0.00027522,2]
[379176888,1755178249957,-400.0,0.00027522,2]
[379176889,1755178249967,-400.0,0.00027522,2]
[379176890,1755178249988,-400.0,0.00027522,2]
[379176891,1755178249999,-900.67,0.00027522,2]
[379176892,1755178250009,-724.19,0.00027522,2]
[379176893,1755178250022,-400.0,0.00027522,2]
[379176894,1755178250032,-400.0,0.00027522,2]
[379176895,1755178250041,-660.91,0.00027522,2]
[379176896,1755178250050,-400.0,0.00027522,2]
[379176897,1755178250062,-523.61,0.00027522,2]
[379176898,1755178250073,-400.0,0.00027522,2]
[379176899,1755178250083,-400.0,0.00027522,2]
[379176900,1755178250094,-400.0,0.00027522,2]
[379176901,1755178250103,-400.0,0.00027522,2]
[379176902,1755178250113,-1976.72,0.00027522,2]
[379176903,1755178250123,-1193.07,0.00027522,2]
[379176904,1755178250132,-400.0,0.00027522,2]
[379176905,1755178250142,-400.0,0.00027522,2]
[379176906,1755178250152,-1361.21,0.00027522,2]
[379176907,1755178250162,-924.13,0.00027522,2]
[379176908,1755178250171,-882.15,0.00027522,2]
[379176909,1755178250181,-400.0,0.00027522,2]
[379176910,1755178250191,-400.0,0.00027522,2]
[379176911,1755178250200,-400.0,0.00027522,2]
[379176912,1755178250210,-771.19,0.00027522,2]
[379176913,1755178250221,-2075.48,0.00027522,2]
[379176914,1755178250231,-996.91,0.00027522,2]
[379176915,1755178250246,-400.0,0.00027522,2]
[379176916,1755178250258,-400.0,0.00027522,2]
[379176917,1755178250268,-450.53,0.00027522,2]
[379176918,1755178250278,-493.6,0.00027522,2]
[379176919,1755178250289,-400.0,0.00027522,2]
[379176920,1755178250299,-1174.43,0.00027522,2]
[379176921,1755178250310,-424.5,0.00027522,2]
[379176922,1755178250320,-1852.32,0.00027522,2]
[379176923,1755178250330,-984.79,0.00027522,2]
[379176924,1755178250340,-400.0,0.00027522,2]
[379176925,1755178250350,-2168.3,0.00027522,2]
[379176926,1755178250360,-2016.99,0.00027522,2]
[379176927,1755178250369,-3083.16,0.00027522,2]
[379176928,1755178250379,-930.13,0.00027522,2]
[379176929,1755178250388,-400.0,0.00027522,2]
[379176930,1755178250398,-887.78,0.00027522,2]
[379176931,1755178250407,-417.94,0.00027522,2]
[379176932,1755178250418,-2068.5,0.00027522,2]
[379176933,1755178250428,-409.81883838,0.00027522,2]
[379176934,1755178250438,-400.0,0.00027522,2]
[379176935,1755178250447,-400.0,0.00027522,2]
[379176936,1755178250457,-400.0,0.00027522,2]
[379176937,1755178250467,-400.0,0.00027522,2]
[379176938,1755178250477,-400.0,0.00027522,2]
[379176939,1755178250490,-483.2,0.00027522,2]
[379176940,1755178250499,-598.71,0.00027522,2]
[379176941,1755178250509,-606.63,0.00027522,2]
[379176942,1755178250520,-479.77596282,0.00027522,2]
[379176943,1755178250529,-1733.51,0.00027522,2]
[379176944,1755178250539,-473.53,0.00027522,2]
[379176945,1755178250548,-400.0,0.00027522,2]
[379176946,1755178250558,-400.0,0.00027522,2]
[379176947,1755178250568,-400.0,0.00027522,2]
[379176948,1755178250577,-1347.19,0.00027522,2]
[379176949,1755178250587,-1085.39,0.00027522,2]
[379176950,1755178250597,-400.0,0.00027522,2]
[379176951,1755178250608,-981.48,0.00027522,2]
[379176952,1755178250618,-400.0,0.00027522,2]
[379176953,1755178250628,-810.83,0.00027522,2]
[379176954,1755178250638,-536.82,0.00027522,2]
[379176955,1755178250656,-487.63,0.00027522,2]
[379176956,1755178250666,-439.13,0.00027522,2]
[379176957,1755178250676,-1308.34,0.00027522,2]
[379176958,1755178250685,-1875.92,0.00027522,2]
[379176959,1755178250695,-2290.9,0.00027522,2]
[379176960,1755178250704,-1163.93,0.00027522,2]
[379176961,1755178250714,-415.19,0.00027522,2]
[379176962,1755178250725,-584.76,0.00027522,2]
[379176963,1755178250738,-3248.52,0.00027522,2]
[379176964,1755178250748,-1013.38,0.00027522,2]
[379176965,1755178250758,-725.98,0.00027522,2]
[379176966,1755178250768,-400.0,0.00027522,2]
[379176967,1755178250777,-400.0,0.00027522,2]
[379176968,1755178250787,-400.0,0.00027522,2]
[379176969,1755178250797,-1005.27,0.00027522,2]
[379176970,1755178250807,-995.66,0.00027522,2]
[379176971,1755178250816,-400.0,0.00027522,2]
[379176972,1755178250826,-202.00379,0.00027522,2]
[379176973,1755178250835,-1629.82,0.00027522,2]
[379176974,1755178250845,-400.0,0.00027522,2]
[379176975,1755178250854,-400.0,0.00027522,2]
[379176976,1755178250864,-400.0,0.00027522,2]
[379176977,1755178250874,-461.91,0.00027522,2]
[379176978,1755178250883,-400.0,0.00027522,2]
[379176979,1755178250893,-400.0,0.00027522,2]
[379176980,1755178250903,-540.24,0.00027522,2]
[379176981,1755178250912,-1312.29,0.00027522,2]
[379176982,1755178250922,-783.13,0.00027522,2]
[379176983,1755178250932,-400.0,0.00027522,2]
[379176984,1755178250942,-2000.0,0.00027522,30]
[379176985,1755178250952,-617.99,0.00027522,2]
[379176986,1755178250961,-1140.84,0.00027522,2]
[379176987,1755178250971,-400.0,0.00027522,2]
[379176988,1755178250980,-400.0,0.00027522,2]
[379176989,1755178250994,-903.94,0.00027522,2]
[379176990,1755178251004,-2419.01,0.00027522,2]
[379176991,1755178251013,-1561.78,0.00027522,2]
[379176992,1755178251023,-907.82,0.00027522,2]
[379176993,1755178251033,-400.0,0.00027522,2]
[379176994,1755178251043,-400.0,0.00027522,2]
[379176995,1755178251052,-2709.8,0.00027522,2]
[379176996,1755178251063,-1753.96,0.00027522,2]
[379176997,1755178251072,-2177.87,0.00027522,2]
[379176998,1755178251082,-585.74,0.00027522,2]
[379176999,1755178251093,-400.0,0.00027522,2]
[379177000,1755178251102,-1485.6,0.00027522,2]
[379177001,1755178251112,-982.49,0.00027522,2]
[379177002,1755178251121,-400.0,0.00027522,2]
[379177003,1755178251131,-521.61,0.00027522,2]
[379177004,1755178251140,-400.0,0.00027522,2]
[379177005,1755178251150,-1794.5,0.00027522,2]
[379177006,1755178251159,-1022.47536599,0.00027522,2]
[379177007,1755178251169,-490.0,0.00027522,2]
[379177008,1755178251178,-400.0,0.00027522,2]
[379177009,1755178251188,-490.0,0.00027522,2]
[379177010,1755178251198,-400.0,0.00027522,2]
[379177011,1755178251207,-2648.87,0.00027522,2]
[379177012,1755178251216,-639.3,0.00027522,2]
[379177013,1755178251226,-928.74,0.00027522,2]
[379177014,1755178251238,-1387.02,0.00027522,2]
[379177015,1755178251248,-1099.43,0.00027522,2]
[379177016,1755178251258,-1260.1,0.00027522,2]
[379177017,1755178251267,-1265.07,0.00027522,2]
[379177018,1755178251277,-500.0,0.00027522,2]
[379177019,1755178251287,-660.32,0.00027522,2]
[379177020,1755178251296,-797.65,0.00027522,2]
[379177021,1755178251306,-1502.11,0.00027522,2]
[379177022,1755178251315,-400.0,0.00027522,2]
[379177023,1755178251324,-428.2,0.00027522,2]
[379177024,1755178251334,-902.35,0.00027522,2]
[379177025,1755178251344,-400.0,0.00027522,2]
[379177026,1755178251353,-400.0,0.00027522,2]
[379177027,1755178251363,-408.66,0.00027522,2]
[379177028,1755178251372,-1387.63,0.00027522,2]
[379177029,1755178251381,-419.65,0.00027522,2]
[379177030,1755178251391,-400.0,0.00027522,2]
[379177031,1755178251400,-718.43,0.00027522,2]
[379177032,1755178251410,-455.08,0.00027522,2]
[379177033,1755178251419,-1516.76,0.00027522,2]
[379177034,1755178251428,-344.19647918,0.00027522,2]
[379177035,1755178251438,-400.0,0.00027522,2]
[379177036,1755178251448,-2873.66,0.00027522,2]
[379177037,1755178251458,-458.16,0.00027522,2]
[379177038,1755178251467,-937.23,0.00027522,2]
[379177039,1755178251477,-3163.12,0.00027522,2]
[379177040,1755178251490,-707.26,0.00027522,2]
[379177041,1755178251499,-1619.72,0.00027522,2]
[379177042,1755178251509,-822.21,0.00027522,2]
[379177043,1755178251518,-400.0,0.00027522,2]
[379177044,1755178251527,-400.0,0.00027522,2]
[379177045,1755178251537,-2679.58,0.00027522,2]
[379177046,1755178251546,-1731.16,0.00027522,2]
[379177047,1755178251556,-1809.07,0.00027522,2]
[379177048,1755178251565,-868.21,0.00027522,2]
[379177049,1755178251574,-400.0,0.00027522,2]
[379177050,1755178251584,-467.23,0.00027522,2]
[379177051,1755178251593,-522.04,0.00027522,2]
[379177052,1755178251602,-400.0,0.00027522,2]
[379177053,1755178251611,-1330.02,0.00027522,2]
[379177054,1755178251621,-788.2,0.00027522,2]
[379177055,1755178251630,-1245.16,0.00027522,2]
[379177056,1755178251639,-657.87,0.00027522,2]
[379177057,1755178251648,-400.0,0.00027522,2]
[379177058,1755178251658,-400.0,0.00027522,2]
[379177059,1755178251667,-1429.4,0.00027522,2]
[379177060,1755178251676,-1203.62,0.00027522,2]
[379177061,1755178251686,-1493.41,0.00027522,2]
[379177062,1755178251695,-627.88,0.00027522,2]
[379177063,1755178251704,-931.38,0.00027522,2]
[379177064,1755178251714,-495.47,0.00027522,2]
[379177065,1755178251723,-532.62,0.00027522,2]
[379177066,1755178251732,-400.0,0.00027522,2]
[379177067,1755178251745,-1020.24,0.00027522,2]
[379177068,1755178251754,-151.0,0.00027522,7]
[379177069,1755178251763,-400.0,0.00027522,2]
[379177070,1755178251772,-411.97227368,0.00027522,2]
[379177071,1755178251782,-725.14,0.00027522,2]
[379177072,1755178251791,-400.0,0.00027522,2]
[379177073,1755178251800,-400.0,0.00027522,2]
[379177074,1755178251809,-669.04,0.00027522,2]
[379177075,1755178251819,-546.92,0.00027522,2]
[379177076,1755178251829,-2674.92,0.00027522,2]
[379177077,1755178251838,-400.0,0.00027522,2]
[379177078,1755178251847,-400.0,0.00027522,2]
[379177079,1755178251856,-500.0,0.00027522,2]
[379177080,1755178251866,-400.0,0.00027522,2]
[379177081,1755178251875,-1850.92,0.00027522,2]
[379177082,1755178251885,-1665.2,0.00027522,2]
[379177083,1755178251894,-428.06,0.00027522,2]
[379177084,1755178251903,-1129.04,0.00027522,2]
[379177085,1755178251912,-1338.740461,0.00027522,7]
[379177086,1755178251921,-472.79,0.00027522,2]
[379177087,1755178251931,-1338.740461,0.00027522,7]
[379177088,1755178251940,-400.0,0.00027522,2]
[379177089,1755178251949,-1977.03,0.00027522,2]
[379177090,1755178251959,-796.35,0.00027522,2]
[379177091,1755178251968,-637.73,0.00027522,2]
[379177092,1755178251979,-400.0,0.00027522,2]
[379177093,1755178251995,-958.46,0.00027522,2]
[379177094,1755178252005,-400.0,0.00027522,2]
[379177095,1755178252016,-828.8,0.00027522,2]
[379177096,1755178252026,-505.79,0.00027522,2]
[379177097,1755178252035,-941.41,0.00027522,2]
[379177098,1755178252045,-1303.78,0.00027522,2]
[379177099,1755178252054,-400.0,0.00027522,2]
[379177100,1755178252064,-1423.68,0.00027522,2]
[379177101,1755178252073,-400.0,0.00027522,2]
[379177102,1755178252084,-868.7,0.00027522,2]
[379177103,1755178252093,-400.0,0.00027522,2]
[379177104,1755178252102,-400.0,0.00027522,2]
[379177105,1755178252111,-400.0,0.00027522,2]
[379177106,1755178252121,-1823.09,0.00027522,2]
[379177107,1755178252130,-151.0,0.00027522,7]
[379177108,1755178252139,-400.0,0.00027522,2]
[379177109,1755178252148,-1093.89,0.00027522,2]
[379177110,1755178252157,-407.42,0.00027522,2]
[379177111,1755178252167,-400.0,0.00027522,2]
[379177112,1755178252176,-400.0,0.00027522,2]
[379177113,1755178252185,-587.5,0.00027522,2]
[379177114,1755178252194,-667.37,0.00027522,2]
[379177115,1755178252204,-500.0,0.00027522,2]
[379177116,1755178252213,-1387.68,0.00027522,2]
[379177117,1755178252223,-638.35,0.00027522,2]
[379177118,1755178252232,-500.0,0.00027522,2]
[379177119,1755178252245,-633.37,0.00027522,2]
[379177120,1755178252254,-953.4,0.00027522,2]
[379177121,1755178252264,-453.1,0.00027522,2]
[379177122,1755178252274,-1057.53,0.00027522,2]
[379177123,1755178252284,-1164.57,0.00027522,2]
[379177124,1755178252294,-400.0,0.00027522,2]
[379177125,1755178252304,-758.59,0.00027522,2]
[379177126,1755178252317,-544.68,0.00027522,2]
[379177127,1755178252327,-400.0,0.00027522,2]
[379177128,1755178252336,-467.36,0.00027522,2]
[379177129,1755178252346,-1162.04,0.00027522,2]
[379177130,1755178252355,-1512.81,0.00027522,2]
[379177131,1755178252365,-440.44,0.00027522,2]
[379177132,1755178252375,-560.44,0.00027522,2]
[379177133,1755178252384,-3579.96,0.00027522,2]
[379177134,1755178252394,-493.43,0.00027522,2]
[379177135,1755178252405,-1008.23,0.00027522,2]
[379177136,1755178252415,-729.98,0.00027522,2]
[379177137,1755178252425,-3762.13,0.00027522,2]
[379177138,1755178252435,-466.14,0.00027522,2]
[379177139,1755178252445,-1460.56,0.00027522,2]
[379177140,1755178252454,-965.45,0.00027522,2]
[379177141,1755178252464,-953.91,0.00027522,2]
[379177142,1755178252473,-8112.95,0.00027522,2]
[379177143,1755178252487,-628.84,0.00027522,2]
[379177144,1755178252497,-400.0,0.00027522,2]
[379177145,1755178252507,-2661.85,0.00027522,2]
[379177146,1755178252516,-483.71,0.00027522,2]
[379177147,1755178252526,-576.83,0.00027522,2]
[379177148,1755178252535,-400.0,0.00027522,2]
[379177149,1755178252544,-801.39,0.00027522,2]
[379177150,1755178252554,-1173.69,0.00027522,2]
[379177151,1755178252563,-590.28,0.00027522,2]
[379177152,1755178252572,-2522.41,0.00027522,2]
[379177153,1755178252581,-1483.43,0.00027522,2]
[379177154,1755178252591,-12022.83,0.00027522,2]
[379177155,1755178252601,-627.73,0.00027522,2]
[379177156,1755178252610,-596.32,0.00027522,2]
[379177157,1755178252621,-1148.63,0.00027522,2]
[379177158,1755178252630,-915.36,0.00027522,2]
[379177159,1755178252639,-4405.05,0.00027522,2]
[379177160,1755178252648,-400.0,0.00027522,2]
[379177161,1755178252657,-400.0,0.00027522,2]
[379177162,1755178252666,-946.34,0.00027522,2]
[379177163,1755178252676,-1060.92,0.00027522,2]
[379177164,1755178252686,-400.0,0.00027522,2]
[379177165,1755178252696,-955.48,0.00027522,2]
[379177166,1755178252706,-400.0,0.00027522,2]
[379177167,1755178252715,-432.48,0.00027522,2]
[379177168,1755178252725,-1130.19,0.00027522,2]
[379177169,1755178252736,-400.0,0.00027522,2]
[379177170,1755178252745,-3361.4,0.00027522,2]
[379177171,1755178252755,-400.0,0.00027522,2]
[379177172,1755178252764,-496.57,0.00027522,2]
[379177173,1755178252773,-400.0,0.00027522,2]
[379177174,1755178252783,-1555.3,0.00027522,2]
[379177175,1755178252793,-793.57,0.00027522,2]
[379177176,1755178252802,-400.0,0.00027522,2]
[379177177,1755178252812,-400.0,0.00027522,2]
[379177178,1755178252821,-2129.84,0.00027522,2]
[379177179,1755178252830,-628.83,0.00027522,2]
[379177180,1755178252840,-400.0,0.00027522,2]
[379177181,1755178252849,-677.63,0.00027522,2]
[379177182,1755178252858,-707.55,0.00027522,2]
[379177183,1755178252867,-400.0,0.00027522,2]
[379177184,1755178252877,-406.84,0.00027522,2]
[379177185,1755178252886,-2880.58,0.00027522,2]
[379177186,1755178252895,-400.0,0.00027522,2]
[379177187,1755178252905,-5599.66,0.00027522,2]
[379177188,1755178252915,-419.53,0.00027522,2]
[379177189,1755178252925,-2560.83,0.00027522,2]
[379177190,1755178252935,-469.93,0.00027522,2]
[379177191,1755178252945,-636.93,0.00027522,2]
[379177192,1755178252954,-7267.31,0.00027522,2]
[379177193,1755178252963,-729.77,0.00027522,2]
[379177194,1755178252973,-870.06,0.00027522,2]
[379177195,1755178252987,-7291.16,0.00027522,2]
[379177196,1755178252998,-400.0,0.00027522,2]
[379177197,1755178253008,-400.0,0.00027522,2]
[379177198,1755178253018,-544.3,0.00027522,2]
[379177199,1755178253029,-10987.84,0.00027522,2]
[379177200,1755178253038,-400.0,0.00027522,2]
[379177201,1755178253048,-490.99530666,0.00027522,2]
[379177202,1755178253057,-776.56,0.00027522,2]
[379177203,1755178253067,-2459.38,0.00027522,2]
[379177204,1755178253076,-1030.83,0.00027522,2]
[379177205,1755178253086,-430.14,0.00027522,2]
[379177206,1755178253095,-1197.16,0.00027522,2]
[379177207,1755178253104,-400.0,0.00027522,2]
[379177208,1755178253114,-400.0,0.00027522,2]
[379177209,1755178253123,-2554.36,0.00027522,2]
[379177210,1755178253133,-678.96,0.00027522,2]